[Event "Campeonato de Aragon Individual 2020 Fase Final"]
[Site "Zaragoza"]
[Date "2020.10.18"]
[Round "3.1"]
[White "Quintin Navarro, Alberto"]
[Black "Palacios Herrero, Pablo"]
[Result "1-0"]
[TimeControl "90+30 sg"]
[WhiteElo "2383"]
[BlackElo "2232"]

1. c4 {[%clk 00:15:04]} {[%emt 03:56:46]} e6 {[%clk 00:15:04]} 2. Nf3 {[%clk
00:15:05]} d5 {[%clk 00:15:06]} 3. g3 {[%clk 00:15:07]} Nf6 {[%clk 00:15:08]} 4.
Bg2 {[%clk 00:15:09]} Be7 {[%clk 00:15:08]} 5. O-O {[%clk 00:15:09]} O-O {[%clk
00:15:10]} 6. d4 {[%clk 00:15:11]} dxc4 {[%clk 00:15:11]} 7. Na3 {[%clk
00:15:13]} Bxa3 8. bxa3 {[%clk 00:15:14]} Bd7 {[%clk 00:14:54]} 9. Ne5 {[%clk
00:15:05]} Bc6 {[%clk 00:14:50]} 10. Nxc6 Nxc6 {[%clk 00:14:52]} 11. Bb2 {[%clk
00:15:04]} Nd5 {[%clk 00:12:30]} {[%emt 00:00:09]} 12. Qc2 {[%clk 00:15:05]}
{[%emt 00:00:02]} c3 {[%clk 00:11:52]} {[%emt 00:00:41]} 13. Bxc3 {[%clk
00:15:05]} {[%emt 00:00:02]} Nxc3 {[%clk 00:11:53]} {[%emt 00:00:02]} 14. Qxc3
{[%clk 00:15:06]} {[%emt 00:00:02]} Qxd4 {[%clk 00:11:32]} {[%emt 00:00:24]} 15.
Qxd4 {[%clk 00:14:32]} {[%emt 00:00:37]} Nxd4 {[%clk 00:11:34]} {[%emt
00:00:02]} 16. e3 {[%clk 00:14:33]} {[%emt 00:00:02]} Nc6 {[%clk 00:08:32]}
{[%emt 00:03:05]} 17. Rac1 {[%clk 00:11:37]} {[%emt 00:02:58]} Rfd8 {[%clk
00:07:39]} {[%emt 00:00:56]} 18. Bxc6 {[%clk 00:11:14]} {[%emt 00:00:26]} bxc6
{[%clk 00:07:41]} {[%emt 00:00:02]} 19. Rxc6 {[%clk 00:11:16]} {[%emt
00:00:01]} Rd3 {[%clk 00:07:09]} {[%emt 00:00:35]} 20. Ra6 {[%clk 00:09:50]}
{[%emt 00:01:29]} g6 {[%clk 00:05:09]} {[%emt 00:02:04]} 21. Rc1 {[%clk
00:07:42]} {[%emt 00:02:11]} Rd7 {[%clk 00:02:22]} {[%emt 00:02:50]} 22. Rc4
{[%clk 00:05:46]} {[%emt 00:01:59]} Kg7 {[%clk 00:01:24]} {[%emt 00:01:00]} 23.
Kf1 {[%clk 00:05:11]} {[%emt 00:00:37]} Rb8 {[%clk 00:00:07]} {[%emt 00:01:21]}
24. Rxa7 {[%clk 00:05:04]} {[%emt 00:00:10]} Rb1+ {[%clk 00:00:08]} {[%emt
00:00:02]} 25. Kg2 {[%clk 00:05:03]} {[%emt 00:00:04]} Rb2 {[%clk 00:00:07]}
{[%emt 00:00:05]} 26. Rcxc7 {[%clk 00:05:02]} {[%emt 00:00:04]} Rxc7 {[%clk
00:00:06]} {[%emt 00:00:04]} 27. Rxc7 {[%clk 00:05:03]} {[%emt 00:00:02]} Rxa2
{[%clk 00:00:08]} {[%emt 00:00:01]} 28. Ra7 {[%clk 00:04:59]} {[%emt 00:00:07]}
Kf6 {[%clk 00:00:10]} {[%emt 00:00:01]} 29. g4 {[%clk 00:04:57]} {[%emt
00:00:05]} Ra1 {[%clk 00:00:09]} {[%emt 00:00:04]} 30. h4 {[%clk 00:04:56]}
{[%emt 00:00:04]} h5 {[%clk 00:00:09]} {[%emt 00:00:03]} 31. g5+ {[%clk
00:04:47]} {[%emt 00:00:12]} Kg7 {[%clk 00:00:11]} {[%emt 00:00:02]} 32. a4
{[%clk 00:04:38]} {[%emt 00:00:12]} Ra2 {[%clk 00:00:10]} {[%emt 00:00:04]} 33.
a5 {[%clk 00:04:39]} {[%emt 00:00:02]} Ra4 {[%clk 00:00:11]} {[%emt 00:00:02]}
34. Kg3 {[%clk 00:04:02]} {[%emt 00:00:40]} Kg8 {[%clk 00:00:12]} {[%emt
00:00:02]} 35. a6 {[%clk 00:03:59]} {[%emt 00:00:06]} Kg7 {[%clk 00:00:15]} 36.
f3 {[%clk 00:03:54]} {[%emt 00:00:08]} Kg8 {[%clk 00:00:13]} {[%emt 00:00:05]}
37. e4 {[%clk 00:03:53]} {[%emt 00:00:04]} Kg7 {[%clk 00:00:15]} {[%emt
00:00:02]} 38. Kf4 {[%clk 00:03:51]} {[%emt 00:00:05]} Ra3 {[%clk 00:00:13]}
{[%emt 00:00:05]} 39. Ra8 {[%clk 00:03:36]} {[%emt 00:00:18]} e5+ {[%clk
00:00:05]} {[%emt 00:00:11]} 40. Kxe5 {[%clk 00:03:31]} {[%emt 00:00:08]} Rxf3
{[%clk 00:00:06]} {[%emt 00:00:02]} 41. Rb8 {[%clk 00:03:16]} {[%emt 00:00:18]}
Ra3 {[%clk 00:00:05]} {[%emt 00:00:04]} 42. Rb6 {[%clk 00:03:17]} {[%emt
00:00:02]} Ra1 {[%clk 00:00:04]} {[%emt 00:00:04]} 43. Kd6 {[%clk 00:03:14]}
{[%emt 00:00:06]} Kf8 {[%clk 00:00:05]} {[%emt 00:00:02]} 44. Kc7 {[%clk
00:03:07]} {[%emt 00:00:10]} Ke7 {[%clk 00:00:05]} {[%emt 00:00:03]} 45. Kb7
{[%clk 00:03:07]} {[%emt 00:00:03]} Kd7 {[%clk 00:00:04]} {[%emt 00:00:05]} 46.
a7 {[%clk 00:03:04]} {[%emt 00:00:05]} Rc1 {[%clk 00:00:00]} {[%emt 00:00:03]}
1-0

[Event "Campeonato de Aragon Individual 2020 Fase Final"]
[Site "Zaragoza"]
[Date "2020.10.18"]
[Round "3.2"]
[White "Gines Esteo, Pedro Antonio"]
[Black "Eizaguerri Floris, Maria"]
[Result "1-0"]
[TimeControl "90+30 sg"]
[WhiteElo "2434"]
[BlackElo "2167"]

1. d4 {[%clk 00:15:04]} {[%emt 02:53:23]} d5 {[%clk 00:15:04]} 2. c4 {[%clk
00:15:05]} c6 {[%clk 00:15:06]} 3. Nf3 {[%clk 00:15:06]} Nf6 {[%clk 00:15:07]}
4. e3 {[%clk 00:15:08]} Bf5 {[%clk 00:15:08]} 5. Nc3 {[%clk 00:15:09]} e6
{[%clk 00:15:10]} 6. Nh4 {[%clk 00:15:11]} Be4 {[%clk 00:15:09]} 7. f3 {[%clk
00:15:12]} Bg6 {[%clk 00:15:11]} 8. Qb3 {[%clk 00:15:13]} Qc7 {[%clk 00:15:10]}
9. Bd2 {[%clk 00:14:48]} Be7 {[%clk 00:15:12]} 10. g3 {[%clk 00:13:57]} a6
{[%clk 00:15:08]} 11. cxd5 {[%clk 00:12:32]} cxd5 {[%clk 00:14:32]} {[%emt
00:00:38]} 12. Rc1 {[%clk 00:12:26]} {[%emt 00:00:09]} Nc6 {[%clk 00:14:34]}
{[%emt 00:00:01]} 13. Be2 {[%clk 00:11:49]} {[%emt 00:00:40]} Nd7 {[%clk
00:13:42]} {[%emt 00:00:55]} 14. Nxg6 {[%clk 00:11:28]} {[%emt 00:00:24]} hxg6
{[%clk 00:13:44]} {[%emt 00:00:01]} 15. Kf2 {[%clk 00:11:09]} {[%emt 00:00:22]}
Rc8 {[%clk 00:10:02]} {[%emt 00:03:45]} 16. Kg2 {[%clk 00:10:36]} {[%emt
00:00:35]} g5 {[%clk 00:08:54]} {[%emt 00:01:12]} 17. Na4 {[%clk 00:07:33]}
{[%emt 00:03:06]} Qb8 {[%clk 00:06:39]} {[%emt 00:02:18]} 18. Nb6 {[%clk
00:05:10]} {[%emt 00:02:27]} Nxb6 {[%clk 00:06:09]} {[%emt 00:00:32]} 19. Qxb6
{[%clk 00:05:12]} {[%emt 00:00:01]} Bd8 {[%clk 00:03:53]} {[%emt 00:02:19]} 20.
Qb3 {[%clk 00:04:36]} {[%emt 00:00:40]} Rc7 {[%clk 00:01:51]} {[%emt 00:02:05]}
21. Rc2 {[%clk 00:02:52]} {[%emt 00:01:47]} Qc8 {[%clk 00:01:24]} {[%emt
00:00:30]} 22. Rhc1 {[%clk 00:00:42]} {[%emt 00:02:13]} e5 {[%clk 00:00:37]}
{[%emt 00:00:50]} 23. g4 {[%clk 00:00:44]} Qe6 {[%clk 00:00:30]} {[%emt
00:00:10]} 24. Be1 {[%clk 00:00:17]} {[%emt 00:00:30]} exd4 {[%clk 00:00:17]}
{[%emt 00:00:15]} 25. Bg3 {[%clk 00:00:05]} {[%emt 00:00:15]} Re7 {[%clk
00:00:13]} {[%emt 00:00:07]} 26. exd4 {[%clk 00:00:04]} {[%emt 00:00:05]} Nxd4
{[%clk 00:00:13]} {[%emt 00:00:02]} 27. Qa4+ {[%clk 00:00:07]} Nc6 {[%clk
00:00:11]} {[%emt 00:00:05]} 28. Bxa6 {[%clk 00:00:08]} {[%emt 00:00:02]} bxa6
{[%clk 00:00:11]} {[%emt 00:00:04]} 29. Rxc6 {[%clk 00:00:09]} {[%emt
00:00:02]} Qe2+ {[%clk 00:00:13]} 30. Kg1 {[%clk 00:00:09]} {[%emt 00:00:03]}
O-O {[%clk 00:00:09]} {[%emt 00:00:07]} 31. Qb3 {[%clk 00:00:08]} {[%emt
00:00:04]} d4 {[%clk 00:00:07]} {[%emt 00:00:05]} 32. Re1 {[%clk 00:00:08]}
{[%emt 00:00:03]} Qd2 {[%clk 00:00:07]} {[%emt 00:00:03]} 33. Rxe7 {[%clk
00:00:08]} {[%emt 00:00:03]} Bxe7 {[%clk 00:00:09]} 34. Qc2 {[%clk 00:00:08]}
{[%emt 00:00:03]} Qe3+ {[%clk 00:00:10]} {[%emt 00:00:02]} 35. Qf2 {[%clk
00:00:08]} {[%emt 00:00:03]} Qxf2+ {[%clk 00:00:08]} {[%emt 00:00:05]} 36. Bxf2
{[%clk 00:00:09]} {[%emt 00:00:02]} Rd8 {[%clk 00:00:09]} {[%emt 00:00:03]} 37.
Rc1 {[%clk 00:00:07]} {[%emt 00:00:05]} Bf6 {[%clk 00:00:09]} {[%emt 00:00:03]}
38. b3 {[%clk 00:00:05]} {[%emt 00:00:05]} Be5 {[%clk 00:00:08]} {[%emt
00:00:04]} 39. Rd1 {[%clk 00:00:06]} {[%emt 00:00:03]} f6 {[%clk 00:00:08]}
{[%emt 00:00:03]} 40. Kf1 {[%clk 00:00:07]} {[%emt 00:00:02]} Kf7 {[%clk
00:00:10]} 41. Ke2 {[%clk 00:00:08]} {[%emt 00:00:03]} Ke6 {[%clk 00:00:13]} 42.
h4 {[%clk 00:00:05]} {[%emt 00:00:06]} gxh4 {[%clk 00:00:12]} {[%emt 00:00:04]}
43. Bxh4 {[%clk 00:00:07]} {[%emt 00:00:01]} g5 {[%clk 00:00:14]} 44. Bf2
{[%clk 00:00:08]} {[%emt 00:00:02]} Kd5 {[%clk 00:00:14]} {[%emt 00:00:03]} 45.
Rc1 {[%clk 00:00:07]} {[%emt 00:00:04]} Rd7 {[%clk 00:00:16]} {[%emt 00:00:02]}
46. Rc4 {[%clk 00:00:08]} {[%emt 00:00:03]} Rc7 {[%clk 00:00:15]} {[%emt
00:00:04]} 47. Rxc7 {[%clk 00:00:06]} {[%emt 00:00:04]} Bxc7 {[%clk 00:00:17]}
48. Kd3 {[%clk 00:00:08]} Be5 {[%clk 00:00:17]} {[%emt 00:00:03]} 49. Bg1
{[%clk 00:00:10]} {[%emt 00:00:02]} Kc5 {[%clk 00:00:16]} {[%emt 00:00:04]} 50.
Bf2 {[%clk 00:00:12]} Kd5 {[%clk 00:00:18]} {[%emt 00:00:01]} 51. b4 {[%clk
00:00:13]} {[%emt 00:00:02]} a5 {[%clk 00:00:11]} {[%emt 00:00:10]} 52. bxa5
{[%clk 00:00:14]} {[%emt 00:00:02]} Kc5 {[%clk 00:00:11]} {[%emt 00:00:03]} 53.
a6 {[%clk 00:00:14]} {[%emt 00:00:03]} Kb6 {[%clk 00:00:11]} {[%emt 00:00:03]}
54. Bxd4+ {[%clk 00:00:15]} {[%emt 00:00:02]} Bf4 {[%clk 00:00:11]} {[%emt
00:00:03]} 55. Ke4+ {[%emt 00:00:05]} 1-0

[Event "Campeonato de Aragon Individual 2020 Fase Final"]
[Site "Zaragoza"]
[Date "2020.10.18"]
[Round "4.1"]
[White "Palacios Herrero, Pablo"]
[Black "Quintin Navarro, Alberto"]
[Result "0-1"]
[TimeControl "90+30 sg"]
[WhiteElo "2232"]
[BlackElo "2383"]

1. e4 {[%clk 00:15:04]} {[%emt 00:00:02]} e5 {[%clk 00:15:05]} {[%emt
00:00:02]} 2. Nf3 {[%clk 00:15:05]} {[%emt 00:00:01]} Nc6 {[%clk 00:15:07]}
{[%emt 00:00:01]} 3. Bb5 {[%clk 00:15:07]} a6 {[%clk 00:15:09]} {[%emt
00:00:02]} 4. Ba4 {[%clk 00:15:09]} Nf6 {[%clk 00:15:09]} {[%emt 00:00:03]} 5.
Qe2 {[%clk 00:15:10]} {[%emt 00:00:03]} b5 {[%clk 00:15:01]} {[%emt 00:00:11]}
6. Bb3 {[%clk 00:15:12]} Be7 {[%clk 00:15:01]} {[%emt 00:00:03]} 7. O-O {[%clk
00:15:05]} {[%emt 00:00:10]} O-O {[%clk 00:15:00]} {[%emt 00:00:04]} 8. c3
{[%clk 00:14:57]} {[%emt 00:00:12]} d5 {[%clk 00:14:45]} {[%emt 00:00:17]} 9.
d3 {[%clk 00:14:13]} {[%emt 00:00:46]} h6 {[%clk 00:13:17]} {[%emt 00:01:31]}
10. Nbd2 {[%clk 00:13:41]} {[%emt 00:00:35]} Re8 {[%clk 00:13:12]} {[%emt
00:00:08]} 11. Re1 {[%clk 00:12:51]} {[%emt 00:00:53]} Bf8 {[%clk 00:12:54]}
{[%emt 00:00:21]} 12. Nf1 {[%clk 00:12:47]} {[%emt 00:00:07]} Bb7 {[%clk
00:11:51]} {[%emt 00:01:07]} 13. Ng3 {[%clk 00:12:23]} {[%emt 00:00:27]} Na5
{[%clk 00:11:50]} {[%emt 00:00:04]} 14. Bc2 {[%clk 00:12:19]} {[%emt 00:00:07]}
c5 {[%clk 00:11:49]} {[%emt 00:00:03]} 15. b3 {[%clk 00:11:01]} {[%emt
00:01:21]} Nc6 {[%clk 00:11:13]} {[%emt 00:00:39]} 16. Bb2 {[%clk 00:10:31]}
{[%emt 00:00:33]} d4 {[%clk 00:10:36]} {[%emt 00:00:40]} 17. cxd4 {[%clk
00:10:12]} {[%emt 00:00:23]} cxd4 {[%clk 00:10:35]} {[%emt 00:00:03]} 18. a3
{[%clk 00:09:49]} {[%emt 00:00:26]} a5 {[%clk 00:10:21]} {[%emt 00:00:17]} 19.
Rec1 {[%clk 00:09:32]} {[%emt 00:00:20]} Rc8 {[%clk 00:10:17]} {[%emt
00:00:07]} 20. a4 {[%clk 00:08:29]} {[%emt 00:01:05]} Ba6 {[%clk 00:10:02]}
{[%emt 00:00:19]} 21. Nf1 {[%clk 00:08:01]} {[%emt 00:00:31]} Nd7 {[%clk
00:09:05]} {[%emt 00:00:59]} 22. axb5 {[%clk 00:07:23]} {[%emt 00:00:42]} Bxb5
{[%clk 00:09:06]} {[%emt 00:00:02]} 23. N1d2 {[%clk 00:07:25]} Bb4 {[%clk
00:08:37]} {[%emt 00:00:32]} 24. Nc4 {[%clk 00:07:19]} {[%emt 00:00:09]} Bxc4
{[%clk 00:08:36]} {[%emt 00:00:04]} 25. bxc4 {[%clk 00:06:56]} {[%emt
00:00:26]} Nc5 {[%clk 00:08:28]} {[%emt 00:00:10]} 26. Ba4 {[%clk 00:06:27]}
{[%emt 00:00:32]} Re6 {[%clk 00:08:27]} {[%emt 00:00:04]} 27. Bb5 {[%clk
00:06:04]} {[%emt 00:00:26]} Nb3 {[%clk 00:08:21]} {[%emt 00:00:09]} 28. Ne1
{[%clk 00:05:10]} {[%emt 00:00:57]} Nxa1 {[%clk 00:07:51]} {[%emt 00:00:33]} 29.
Bxa1 {[%clk 00:04:58]} {[%emt 00:00:15]} Bc3 {[%clk 00:06:53]} {[%emt
00:01:02]} 30. Bxc3 {[%clk 00:04:27]} {[%emt 00:00:33]} dxc3 {[%clk 00:06:53]}
{[%emt 00:00:03]} 31. Bxc6 {[%clk 00:03:42]} {[%emt 00:00:48]} Rexc6 {[%clk
00:06:48]} {[%emt 00:00:09]} 32. Rxc3 {[%clk 00:03:41]} {[%emt 00:00:03]} Rb8
{[%clk 00:06:36]} {[%emt 00:00:15]} 33. g3 {[%clk 00:03:34]} {[%emt 00:00:10]}
Rcb6 {[%clk 00:05:13]} {[%emt 00:01:27]} 34. Nf3 {[%clk 00:03:18]} {[%emt
00:00:18]} Qe7 {[%clk 00:05:00]} {[%emt 00:00:17]} 35. c5 {[%clk 00:02:34]}
{[%emt 00:00:47]} Rc6 {[%clk 00:04:50]} {[%emt 00:00:13]} 36. d4 {[%clk
00:01:44]} {[%emt 00:00:53]} exd4 {[%clk 00:04:45]} {[%emt 00:00:08]} 37. Nxd4
{[%clk 00:01:45]} {[%emt 00:00:03]} Rxc5 {[%clk 00:04:30]} {[%emt 00:00:18]} 38.
Re3 {[%clk 00:00:23]} {[%emt 00:01:24]} Rc1+ {[%clk 00:03:50]} {[%emt
00:00:43]} 39. Kg2 {[%clk 00:00:25]} {[%emt 00:00:01]} Rbb1 {[%clk 00:03:45]}
{[%emt 00:00:08]} 40. Nf5 {[%clk 00:00:23]} {[%emt 00:00:05]} Rg1+ {[%clk
00:03:38]} {[%emt 00:00:10]} 41. Kh3 {[%clk 00:00:06]} {[%emt 00:00:21]} Qe6
{[%clk 00:03:33]} {[%emt 00:00:08]} 42. g4 {[%clk 00:00:07]} {[%emt 00:00:02]}
g6 {[%clk 00:03:04]} {[%emt 00:00:31]} 43. Ng3 {[%clk 00:00:05]} {[%emt
00:00:05]} h5 {[%clk 00:02:40]} {[%emt 00:00:27]} 44. f3 {[%clk 00:00:07]}
hxg4+ {[%clk 00:02:27]} {[%emt 00:00:16]} 45. fxg4 {[%clk 00:00:09]} Qe5 {[%clk
00:02:10]} {[%emt 00:00:20]} 46. Qf2 {[%clk 00:00:04]} {[%emt 00:00:08]} Qh8+
{[%clk 00:02:05]} {[%emt 00:00:08]} 0-1

[Event "Campeonato de Aragon Individual 2020 Fase Final"]
[Site "Zaragoza"]
[Date "2020.10.18"]
[Round "4.2"]
[White "Eizaguerri Floris, Maria"]
[Black "Gines Esteo, Pedro Antonio"]
[Result "1-0"]
[TimeControl "90+30 sg"]
[WhiteElo "2167"]
[BlackElo "2434"]

1. e4 {[%clk 00:15:05]} {[%emt 00:00:01]} c6 {[%clk 00:15:05]} {[%emt
00:00:01]} 2. d4 {[%clk 00:15:07]} d5 {[%clk 00:15:07]} 3. e5 {[%clk 00:15:09]}
{[%emt 00:00:01]} Bf5 {[%clk 00:15:09]} {[%emt 00:00:02]} 4. Nd2 {[%clk
00:15:10]} {[%emt 00:00:01]} e6 {[%clk 00:15:10]} {[%emt 00:00:02]} 5. Nb3
{[%clk 00:15:12]} {[%emt 00:00:01]} Nd7 {[%clk 00:15:10]} {[%emt 00:00:03]} 6.
Nf3 {[%clk 00:15:13]} {[%emt 00:00:02]} Ne7 {[%clk 00:15:12]} {[%emt 00:00:02]}
7. Be2 {[%clk 00:15:14]} {[%emt 00:00:01]} h6 {[%clk 00:15:13]} {[%emt
00:00:02]} 8. O-O {[%clk 00:15:12]} {[%emt 00:00:04]} g5 {[%clk 00:15:15]}
{[%emt 00:00:02]} 9. Ne1 {[%clk 00:15:13]} {[%emt 00:00:02]} Qc7 {[%clk
00:15:13]} {[%emt 00:00:05]} 10. Be3 {[%clk 00:15:10]} {[%emt 00:00:06]} b6
{[%clk 00:13:46]} {[%emt 00:01:31]} 11. f4 {[%clk 00:13:00]} {[%emt 00:02:12]}
c5 {[%clk 00:13:27]} {[%emt 00:00:23]} 12. dxc5 {[%clk 00:12:36]} {[%emt
00:00:27]} bxc5 {[%clk 00:13:10]} {[%emt 00:00:19]} 13. Bb5 {[%clk 00:10:15]}
{[%emt 00:02:23]} Nc6 {[%clk 00:08:35]} {[%emt 00:04:39]} 14. fxg5 {[%clk
00:10:17]} {[%emt 00:00:01]} d4 {[%clk 00:08:06]} {[%emt 00:00:32]} 15. Bf4
{[%clk 00:07:03]} {[%emt 00:03:16]} hxg5 {[%clk 00:07:35]} {[%emt 00:00:34]} 16.
Bxg5 {[%clk 00:07:05]} {[%emt 00:00:02]} Ndxe5 {[%clk 00:05:26]} {[%emt
00:02:12]} 17. Bf6 {[%clk 00:06:00]} {[%emt 00:01:07]} Ng4 {[%clk 00:03:51]}
{[%emt 00:01:38]} 18. Bxc6+ {[%clk 00:05:55]} {[%emt 00:00:09]} Qxc6 {[%clk
00:03:54]} {[%emt 00:00:01]} 19. Bxh8 {[%clk 00:05:47]} {[%emt 00:00:10]} Bh6
{[%clk 00:02:37]} {[%emt 00:01:20]} 20. Bxd4 {[%clk 00:01:20]} {[%emt
00:04:30]} cxd4 {[%clk 00:02:05]} {[%emt 00:00:35]} 21. Nxd4 {[%clk 00:01:01]}
{[%emt 00:00:22]} Qb6 {[%clk 00:01:32]} {[%emt 00:00:36]} 22. Kh1 {[%clk
00:00:40]} {[%emt 00:00:24]} O-O-O {[%clk 00:00:54]} {[%emt 00:00:40]} 23. c3
{[%clk 00:00:27]} {[%emt 00:00:16]} Ne3 {[%clk 00:00:16]} {[%emt 00:00:41]} 24.
Qf3 {[%clk 00:00:28]} {[%emt 00:00:02]} Nxf1 {[%clk 00:00:16]} {[%emt
00:00:03]} 25. Qxf1 {[%clk 00:00:30]} Qxb2 {[%clk 00:00:11]} {[%emt 00:00:08]}
26. Nef3 {[%clk 00:00:17]} {[%emt 00:00:15]} Bd3 {[%clk 00:00:10]} {[%emt
00:00:04]} 27. Qe1 {[%clk 00:00:13]} {[%emt 00:00:07]} Ba6 {[%clk 00:00:08]}
{[%emt 00:00:05]} 28. Rb1 {[%clk 00:00:11]} {[%emt 00:00:04]} Qa3 {[%clk
00:00:07]} {[%emt 00:00:03]} 29. Qe5 {[%clk 00:00:09]} {[%emt 00:00:06]} Qd6
{[%clk 00:00:08]} {[%emt 00:00:03]} 30. Qa5 {[%clk 00:00:08]} {[%emt 00:00:03]}
Be3 {[%clk 00:00:07]} {[%emt 00:00:05]} 31. Qa4 {[%clk 00:00:06]} {[%emt
00:00:04]} Rd7 {[%clk 00:00:05]} {[%emt 00:00:04]} 32. Nc6 {[%clk 00:00:07]}
{[%emt 00:00:02]} Rc7 {[%clk 00:00:06]} {[%emt 00:00:02]} 33. Rb8+ {[%clk
00:00:08]} {[%emt 00:00:02]} Kd7 {[%emt 00:00:03]} 34. Rd8# 1-0

[Event "Campeonato de Aragon Individual 2020 Fase Final"]
[Site "Zaragoza"]
[Date "2020.10.18"]
[Round "5.1"]
[White "Eizaguerri Floris, Maria"]
[Black "Gines Esteo, Pedro Antonio"]
[Result "0-1"]
[TimeControl "90+30 sg"]
[WhiteElo "2167"]
[BlackElo "2434"]

1. e4 {[%clk 00:03:04]} c6 {[%emt 00:00:04]} 2. d4 d5 3. e5 Bf5 {[%clk
00:02:45]} {[%emt 00:00:18]} 4. Nd2 e6 5. Nb3 {[%clk 00:03:09]} Nd7 {[%clk
00:02:48]} 6. Nf3 {[%clk 00:03:10]} Ne7 {[%clk 00:02:49]} {[%emt 00:00:01]} 7.
Be2 {[%clk 00:03:11]} h6 {[%clk 00:02:50]} 8. O-O {[%clk 00:03:10]} {[%emt
00:00:03]} g5 {[%clk 00:02:51]} 9. Ne1 {[%clk 00:03:11]} Qc7 {[%clk 00:02:52]}
{[%emt 00:00:03]} 10. Nd3 {[%clk 00:03:12]} b6 {[%clk 00:02:53]} {[%emt
00:00:01]} 11. Be3 {[%clk 00:02:54]} {[%emt 00:00:19]} Bg7 {[%clk 00:02:54]} 12.
f4 {[%clk 00:02:49]} {[%emt 00:00:08]} c5 {[%clk 00:02:56]} 13. dxc5 {[%clk
00:02:35]} {[%emt 00:00:17]} gxf4 {[%clk 00:02:56]} 14. cxb6 {[%clk 00:02:29]}
{[%emt 00:00:08]} axb6 {[%clk 00:02:57]} {[%emt 00:00:01]} 15. Bxf4 {[%clk
00:02:00]} {[%emt 00:00:31]} Ng6 {[%clk 00:02:58]} 16. Bg3 {[%clk 00:01:46]}
{[%emt 00:00:16]} Be4 {[%clk 00:02:59]} 17. Bh5 {[%clk 00:01:39]} {[%emt
00:00:09]} O-O {[%clk 00:01:41]} {[%emt 00:01:20]} 18. Bxg6 {[%clk 00:01:09]}
{[%emt 00:00:32]} Bxg6 {[%clk 00:01:32]} {[%emt 00:00:11]} 19. Qe2 {[%clk
00:01:02]} {[%emt 00:00:09]} Ra4 {[%clk 00:01:33]} 20. c3 {[%clk 00:00:41]}
{[%emt 00:00:23]} Re4 {[%clk 00:00:34]} {[%emt 00:01:00]} 21. Qf3 {[%clk
00:00:30]} {[%emt 00:00:13]} Nxe5 {[%clk 00:00:22]} {[%emt 00:00:14]} 22. Nxe5
{[%clk 00:00:31]} Bxe5 {[%clk 00:00:23]} 23. Bxe5 {[%clk 00:00:32]} Qxe5 {[%clk
00:00:22]} {[%emt 00:00:02]} 24. Nd4 {[%clk 00:00:32]} {[%emt 00:00:03]} Kg7
{[%clk 00:00:15]} {[%emt 00:00:09]} 25. Qf2 {[%clk 00:00:28]} {[%emt 00:00:06]}
Rc8 {[%clk 00:00:05]} {[%emt 00:00:12]} 26. Nf3 {[%clk 00:00:22]} {[%emt
00:00:08]} Qf4 {[%clk 00:00:05]} {[%emt 00:00:02]} 27. Qxb6 {[%emt 00:00:09]}
Re2 {[%clk 00:00:04]} {[%emt 00:00:02]} 28. Rae1 {[%clk 00:00:16]} {[%emt
00:00:02]} Rxe1 {[%clk 00:00:04]} {[%emt 00:00:03]} 29. Nxe1 {[%clk 00:00:15]}
{[%emt 00:00:03]} Qd2 {[%clk 00:00:04]} {[%emt 00:00:02]} 30. Qf2 {[%clk
00:00:15]} {[%emt 00:00:01]} Qg5 {[%clk 00:00:03]} {[%emt 00:00:03]} 31. Nf3
{[%clk 00:00:16]} {[%emt 00:00:01]} Qf4 {[%clk 00:00:04]} 32. Nd4 {[%clk
00:00:16]} {[%emt 00:00:03]} Qe5 {[%clk 00:00:04]} {[%emt 00:00:02]} 33. Qe2
{[%clk 00:00:13]} {[%emt 00:00:04]} Qxe2 {[%clk 00:00:05]} {[%emt 00:00:02]} 34.
Nxe2 {[%clk 00:00:15]} Rb8 {[%clk 00:00:06]} 35. b3 {[%clk 00:00:14]} {[%emt
00:00:03]} Ra8 {[%clk 00:00:07]} 36. Ra1 {[%clk 00:00:13]} {[%emt 00:00:03]}
Kf6 {[%clk 00:00:06]} {[%emt 00:00:03]} 37. Kf2 {[%clk 00:00:14]} e5 {[%clk
00:00:07]} {[%emt 00:00:02]} 38. a4 {[%clk 00:00:14]} {[%emt 00:00:02]} Bc2
{[%clk 00:00:07]} {[%emt 00:00:02]} 39. Ra3 {[%clk 00:00:15]} {[%emt 00:00:02]}
Ke6 {[%clk 00:00:06]} {[%emt 00:00:03]} 40. Nc1 {[%clk 00:00:15]} {[%emt
00:00:01]} f5 {[%emt 00:00:04]} 41. a5 f4 {[%clk 00:00:05]} {[%emt 00:00:02]}
42. b4 {[%clk 00:00:18]} Be4 {[%clk 00:00:05]} {[%emt 00:00:02]} 43. b5 {[%clk
00:00:16]} {[%emt 00:00:04]} Rg8 {[%clk 00:00:07]} 44. g3 {[%clk 00:00:16]}
{[%emt 00:00:02]} fxg3+ {[%clk 00:00:08]} 45. hxg3 {[%clk 00:00:17]} Rf8+
{[%clk 00:00:09]} 46. Ke2 {[%clk 00:00:17]} {[%emt 00:00:03]} Bf3+ {[%clk
00:00:09]} {[%emt 00:00:03]} 47. Ke3 {[%clk 00:00:17]} {[%emt 00:00:01]} Bg4
{[%clk 00:00:09]} {[%emt 00:00:03]} 48. a6 {[%clk 00:00:17]} {[%emt 00:00:02]}
Kd6 {[%clk 00:00:09]} {[%emt 00:00:02]} 49. Nb3 {[%clk 00:00:16]} {[%emt
00:00:03]} Rf3+ {[%clk 00:00:08]} {[%emt 00:00:02]} 50. Kd2 {[%clk 00:00:17]}
Rf2+ {[%clk 00:00:09]} 51. Ke1 {[%clk 00:00:16]} {[%emt 00:00:03]} Rf8 {[%clk
00:00:09]} {[%emt 00:00:02]} 52. Na5 {[%clk 00:00:08]} {[%emt 00:00:09]} Kc5
{[%clk 00:00:10]} {[%emt 00:00:02]} 53. Rb3 {[%clk 00:00:05]} {[%emt 00:00:05]}
Kb6 {[%clk 00:00:09]} {[%emt 00:00:03]} 54. Nc6 {[%clk 00:00:06]} {[%emt
00:00:02]} Bd7 {[%clk 00:00:10]} 55. Nxe5 {[%clk 00:00:06]} {[%emt 00:00:02]}
Re8 {[%clk 00:00:11]} 56. Kd2 {[%clk 00:00:05]} {[%emt 00:00:04]} Rxe5 {[%clk
00:00:12]} {[%emt 00:00:01]} 57. a7 {[%clk 00:00:06]} Kxa7 {[%clk 00:00:12]}
{[%emt 00:00:01]} 58. b6+ {[%clk 00:00:08]} Kb7 {[%clk 00:00:14]} 59. Rb4
{[%clk 00:00:10]} Re4 {[%clk 00:00:14]} {[%emt 00:00:02]} 60. Rb1 {[%clk
00:00:07]} {[%emt 00:00:05]} Re6 {[%clk 00:00:14]} {[%emt 00:00:02]} 61. Rh1
{[%clk 00:00:07]} {[%emt 00:00:02]} Kxb6 {[%clk 00:00:14]} {[%emt 00:00:02]} 62.
Rh5 Kc5 63. Kd3 {[%clk 00:00:09]} Bb5+ {[%clk 00:00:17]} 64. Kd2 {[%clk
00:00:10]} Bc4 {[%clk 00:00:16]} {[%emt 00:00:03]} 65. Rh4 {[%clk 00:00:10]}
{[%emt 00:00:03]} Rg6 {[%clk 00:00:17]} 66. Rh3 {[%clk 00:00:08]} {[%emt
00:00:03]} Kd6 {[%clk 00:00:18]} {[%emt 00:00:02]} 67. Ke3 {[%clk 00:00:09]}
Ke6 {[%clk 00:00:17]} {[%emt 00:00:03]} 68. Kd4 {[%clk 00:00:11]} Kf5 {[%clk
00:00:15]} {[%emt 00:00:04]} 69. Rh4 {[%clk 00:00:09]} {[%emt 00:00:03]} Rg4+
{[%clk 00:00:15]} {[%emt 00:00:02]} 0-1